fUST/lending_fUST_20250717
["ID","MTS","AMOUNT","RATE_DAILY","PERIOD"]
[372635239,1752721846366,-460.0,0.00018453,2]
[372635240,1752721846375,-460.0,0.00018454,2]
[372635241,1752721846385,-460.0,0.00018454,2]
[372635242,1752721846395,-180.428539,0.00018458,2]
[372635243,1752721846404,-180.428539,0.00018458,2]
[372635244,1752721846413,-180.428539,0.00018465,2]
[372635245,1752721846422,-180.428539,0.00018465,2]
[372635246,1752721846431,-5441.0,0.00018486,2]
[372635247,1752721846440,-323.0,0.00018492,2]
[372635248,1752721846450,-151.0,0.000185,2]
[372635249,1752721846459,-154.784671,0.000185,2]
[372635250,1752721846470,-153.0,0.000185,2]
[372635251,1752721846480,-153.0,0.000185,2]
[372635252,1752721846489,-153.0,0.000185,2]
[372635253,1752721846498,-151.0,0.000185,2]
[372635254,1752721846508,-153.0,0.000185,2]
[372635255,1752721846518,-153.0,0.000185,2]
[372635256,1752721846528,-153.0,0.000185,2]
[372635257,1752721846537,-5232.55235562,0.00018533,2]
[372635258,1752721846546,-153.0,0.000186,2]
[372635259,1752721846556,-154.6102147,0.000186,2]
[372635260,1752721846566,-153.0,0.000186,2]
[372635261,1752721846575,-333.0781877,0.000186,2]
[372635262,1752721846586,-151.0,0.000186,2]
[372635263,1752721846597,-5000.0,0.00018642,2]
[372635264,1752721846606,-5441.0,0.00018661,2]
[372635265,1752721846616,-151.0,0.000187,2]
[372635266,1752721846626,-151.0,0.000187,2]
[372635267,1752721846635,-460.0,0.00018712,2]
[372635268,1752721846644,-460.0,0.00018712,2]
[372635269,1752721846654,-460.0,0.00018712,2]
[372635270,1752721846663,-480.26,0.00018712,2]
[372635271,1752721846673,-460.0,0.00018712,2]
[372635272,1752721846682,-3160.74,0.00018712,2]
[372635273,1752721846691,-460.0,0.00018712,2]
[372635274,1752721846703,-401.44634838,0.00018713,2]
[372635275,1752721846713,-460.0,0.00018713,2]
[372635276,1752721846724,-7086.7,0.00018713,2]
[372635277,1752721846734,-460.0,0.00018713,2]
[372635278,1752721846744,-460.0,0.00018713,2]
[372635279,1752721846753,-4330.62,0.00018713,2]
[372635280,1752721846769,-1130.34,0.00018713,2]
[372635281,1752721846779,-348.30608054,0.00018713,2]
[372635282,1752721846789,-460.0,0.00018713,2]
[372635283,1752721846798,-244.711157,0.00018713,2]
[372635284,1752721846807,-460.0,0.00018713,2]
[372635285,1752721846818,-460.0,0.00018713,2]
[372635286,1752721846830,-645.76,0.00018713,2]
[372635287,1752721846839,-460.0,0.00018713,2]
[372635288,1752721846850,-3065.11,0.00018713,2]
[372635289,1752721846860,-3304.66,0.00018713,2]
[372635290,1752721846870,-460.0,0.00018713,2]
[372635291,1752721846880,-231.39501375,0.00018713,2]
[372635292,1752721846890,-2477.9,0.00018713,2]
[372635293,1752721846903,-796.26,0.00018713,2]
[372635294,1752721846913,-460.0,0.00018713,2]
[372635295,1752721846922,-460.0,0.00018713,2]
[372635296,1752721846932,-2385.51,0.00018713,2]
[372635297,1752721846941,-460.0,0.00018714,2]
[372635298,1752721846951,-460.0,0.00018714,2]
[372635299,1752721846960,-462.24579988,0.00018714,2]
[372635300,1752721846971,-460.0,0.00018714,2]
[372635301,1752721846980,-460.0,0.00018714,2]
[372635302,1752721846990,-460.0,0.00018714,2]
[372635303,1752721847001,-407.41580795,0.00018714,2]
[372635304,1752721847011,-460.0,0.00018714,2]
[372635305,1752721847021,-460.0,0.00018714,2]
[372635306,1752721847031,-460.0,0.00018714,2]
[372635307,1752721847041,-460.0,0.00018714,2]
[372635308,1752721847051,-460.0,0.00018714,2]
[372635309,1752721847061,-460.0,0.00018714,2]
[372635310,1752721847071,-638.36,0.00018714,2]
[372635311,1752721847080,-857.57,0.00018714,2]
[372635312,1752721847089,-300.43473197,0.00018714,2]
[372635313,1752721847099,-460.0,0.00018714,2]
[372635314,1752721847108,-460.0,0.00018714,2]
[372635315,1752721847117,-460.0,0.00018714,2]
[372635316,1752721847127,-460.0,0.00018714,2]
[372635317,1752721847137,-778.05,0.00018714,2]
[372635318,1752721847146,-460.0,0.00018714,2]
[372635319,1752721847155,-460.0,0.00018714,2]
[372635320,1752721847165,-786.22,0.00018714,2]
[372635321,1752721847174,-816.29,0.00018714,2]
[372635322,1752721847183,-1419.46,0.00018714,2]
[372635323,1752721847192,-843.09,0.00018714,2]
[372635324,1752721847202,-460.0,0.00018714,2]
[372635325,1752721847211,-460.0,0.00018714,2]
[372635326,1752721847223,-460.0,0.00018714,2]
[372635327,1752721847233,-460.0,0.00018714,2]
[372635328,1752721847243,-460.0,0.00018714,2]
[372635329,1752721847252,-460.0,0.00018714,2]
[372635330,1752721847261,-460.0,0.00018714,2]
[372635331,1752721847272,-460.0,0.00018714,2]
[372635332,1752721847281,-240.0,0.00018715,2]
[372635333,1752721847291,-460.0,0.00018715,2]
[372635334,1752721847301,-585.07,0.00018715,2]
[372635335,1752721847310,-6141.92,0.00018715,2]
[372635336,1752721847319,-151.0,0.00018715,2]
[372635337,1752721847329,-1263.65,0.00018715,2]
[372635338,1752721847338,-2338.02,0.00018715,2]
[372635339,1752721847347,-460.0,0.00018715,2]
[372635340,1752721847357,-2992.09,0.00018715,2]
[372635341,1752721847366,-472.77,0.00018715,2]
[372635342,1752721847376,-460.0,0.0001872,2]
[372635343,1752721847385,-460.0,0.0001872,2]
[372635344,1752721847394,-401.41828748,0.0001872,2]
[372635345,1752721847404,-267.45327627,0.0001872,2]
[372635346,1752721847414,-543.52,0.0001872,2]
[372635347,1752721847424,-460.0,0.0001872,2]
[372635348,1752721847434,-487.93,0.0001872,2]
[372635349,1752721847444,-699.72,0.0001872,2]
[372635350,1752721847454,-727.89,0.0001872,2]
[372635351,1752721847464,-554.97,0.0001872,2]
[372635352,1752721847479,-936.36,0.0001872,2]
[372635353,1752721847489,-826.17,0.0001872,2]
[372635354,1752721847498,-151.0,0.0001872,2]
[372635355,1752721847508,-460.0,0.0001872,2]
[372635356,1752721847518,-460.0,0.0001872,2]
[372635357,1752721847528,-896.59,0.0001872,2]
[372635358,1752721847538,-601.2,0.0001872,2]
[372635359,1752721847548,-460.0,0.0001872,2]
[372635360,1752721847558,-460.0,0.0001872,2]
[372635361,1752721847567,-460.0,0.0001872,2]
[372635362,1752721847577,-790.32,0.0001872,2]
[372635363,1752721847586,-460.0,0.0001872,2]
[372635364,1752721847595,-650.81,0.0001872,2]
[372635365,1752721847605,-460.0,0.0001872,2]
[372635366,1752721847614,-688.53,0.0001872,2]
[372635367,1752721847623,-460.0,0.0001872,2]
[372635368,1752721847633,-460.0,0.0001872,2]
[372635369,1752721847642,-751.99,0.0001872,2]
[372635370,1752721847652,-460.0,0.0001872,2]
[372635371,1752721847661,-4758.8,0.0001872,2]
[372635372,1752721847670,-936.52,0.0001872,2]
[372635373,1752721847680,-460.0,0.0001872,2]
[372635374,1752721847690,-460.0,0.0001872,2]
[372635375,1752721847699,-1448.09,0.0001872,2]
[372635376,1752721847708,-151.0,0.0001872,2]
[372635377,1752721847723,-460.0,0.0001872,2]
[372635378,1752721847732,-481.2,0.0001872,2]
[372635379,1752721847742,-151.0,0.0001872,2]
[372635380,1752721847751,-460.0,0.00018721,2]
[372635381,1752721847761,-1906.78,0.00018721,2]
[372635382,1752721847770,-5477.03,0.00018721,2]
[372635383,1752721847780,-1772.29,0.00018721,2]
[372635384,1752721847789,-460.0,0.00018722,2]
[372635385,1752721847798,-460.0,0.00018724,2]
[372635386,1752721847808,-151.0,0.00018724,2]
[372635387,1752721847820,-460.0,0.00018724,2]
[372635388,1752721847830,-460.0,0.00018724,2]
[372635389,1752721847840,-151.0,0.00018724,2]
[372635390,1752721847851,-151.0,0.00018724,2]
[372635391,1752721847862,-151.0,0.00018724,2]
[372635392,1752721847871,-461.63,0.00018724,2]
[372635393,1752721847881,-151.0,0.00018724,2]
[372635394,1752721847891,-460.0,0.00018724,2]
[372635395,1752721847902,-151.0,0.00018724,2]
[372635396,1752721847912,-460.0,0.00018724,2]
[372635397,1752721847921,-461.42736219,0.00018725,2]
[372635398,1752721847930,-200.0,0.00018725,2]
[372635399,1752721847940,-461.45588866,0.00018725,2]
[372635400,1752721847950,-460.0,0.00018725,2]
[372635401,1752721847959,-460.0,0.00018725,2]
[372635402,1752721847971,-460.0,0.00018725,2]
[372635403,1752721847980,-509.65564283,0.00018726,2]
[372635404,1752721847990,-500.55394877,0.00018726,2]
[372635405,1752721847999,-500.0,0.00018726,2]
[372635406,1752721848009,-153.047757,0.00018726,2]
[372635407,1752721848019,-152.694879,0.00018726,2]
[372635408,1752721848029,-289.70681976,0.00018726,2]
[372635409,1752721848038,-798.32,0.00018726,2]
[372635410,1752721848048,-265.39797,0.00018726,2]
[372635411,1752721848058,-265.39797,0.00018726,2]
[372635412,1752721848068,-460.0,0.00018726,2]
[372635413,1752721848079,-251.625628,0.00018726,2]
[372635414,1752721848089,-251.625628,0.00018726,2]
[372635415,1752721848099,-1834.63609853,0.00018726,2]
[372635416,1752721848108,-151.0,0.00018727,2]
[372635417,1752721848118,-151.0,0.00018727,2]
[372635418,1752721848127,-460.0,0.00018727,2]
[372635419,1752721848137,-164.979664,0.00018728,2]
[372635420,1752721848146,-164.979664,0.00018728,2]
[372635421,1752721848156,-151.0,0.00018728,2]
[372635422,1752721848165,-180.428539,0.0001873,2]
[372635423,1752721848175,-180.428539,0.0001873,2]
[372635424,1752721848185,-191.568259,0.00018732,2]
[372635425,1752721848194,-191.568259,0.00018732,2]
[372635426,1752721848204,-490.56475102,0.00018732,2]
[372635427,1752721848216,-180.428539,0.00018738,2]
[372635428,1752721848226,-180.428539,0.00018738,2]
[372635429,1752721848236,-501.05616318,0.00018745,2]
[372635430,1752721848246,-397.40443614,0.00018753,2]
[372635431,1752721848255,-501.02754054,0.00018753,2]
[372635432,1752721848264,-196.28782173,0.00018753,2]
[372635433,1752721848274,-501.1404774,0.00018753,2]
[372635434,1752721848369,-5441.0,0.00018788,2]
[372635435,1752721848379,-153.7365877,0.00018795,2]
[372635436,1752721848389,-153.0,0.00018795,2]
[372635437,1752721848398,-153.0,0.00018795,2]
[372635438,1752721848408,-153.0,0.00018795,2]
[372635439,1752721848417,-1000.0,0.000188,2]
[372635440,1752721848427,-1000.0,0.000188,3]
[372635441,1752721848437,-1000.0,0.000188,4]
[372635442,1752721848446,-151.0,0.000188,2]
[372635443,1752721848456,-151.0,0.000188,2]
[372635444,1752721848468,-168.0,0.00018874,2]
[372635445,1752721848478,-151.0,0.000189,2]
[372635446,1752721848488,-151.0,0.000189,2]
[372635447,1752721848497,-151.0,0.000189,2]
[372635448,1752721848507,-11593.50930437,0.000189,2]
[372635449,1752721848517,-5000.0,0.00018942,2]
[372635450,1752721848526,-151.0,0.00018942,2]
[372635451,1752721848536,-151.0,0.00018942,2]
[372635452,1752721848545,-1408.61296718,0.00018965,2]
[372635453,1752721848555,-1702.0,0.00018969,2]
[372635454,1752721848565,-500.0,0.00018973,2]
[372635455,1752721848574,-500.0,0.00018973,2]
[372635456,1752721848585,-500.0,0.00018973,2]
[372635457,1752721848594,-500.0,0.00018973,2]
[372635458,1752721848604,-7723.5146221,0.00018982,2]
[372635459,1752721848614,-460.0,0.00018986,2]
[372635460,1752721848624,-460.0,0.00018986,2]
[372635461,1752721848633,-460.0,0.00018986,2]
[372635462,1752721848643,-480.26,0.00018986,2]
[372635463,1752721848652,-3160.74,0.00018986,2]
[372635464,1752721848661,-7086.7,0.00018987,2]
[372635465,1752721848671,-460.0,0.00018987,2]
[372635466,1752721848680,-460.0,0.00018987,2]
[372635467,1752721848690,-4330.62,0.00018987,2]
[372635468,1752721848699,-1130.34,0.00018987,2]
[372635469,1752721848708,-460.0,0.00018987,2]
[372635470,1752721848721,-460.0,0.00018987,2]
[372635471,1752721848730,-645.76,0.00018987,2]
[372635472,1752721848739,-3065.11,0.00018987,2]
[372635473,1752721848748,-3304.66,0.00018987,2]
[372635474,1752721848758,-460.0,0.00018987,2]
[372635475,1752721848768,-2477.9,0.00018987,2]
[372635476,1752721848777,-796.26,0.00018987,2]
[372635477,1752721848787,-460.0,0.00018987,2]
[372635478,1752721848797,-460.0,0.00018987,2]
[372635479,1752721848806,-2385.51,0.00018987,2]
[372635480,1752721848816,-460.0,0.00018988,2]
[372635481,1752721848830,-460.0,0.00018988,2]
[372635482,1752721848840,-460.0,0.00018988,2]
[372635483,1752721848850,-460.0,0.00018988,2]
[372635484,1752721848861,-460.0,0.00018988,2]
[372635485,1752721848871,-460.0,0.00018988,2]
[372635486,1752721848881,-460.0,0.00018988,2]
[372635487,1752721848891,-460.0,0.00018988,2]
[372635488,1752721848902,-638.36,0.00018988,2]
[372635489,1752721848912,-857.57,0.00018988,2]
[372635490,1752721848921,-460.0,0.00018988,2]
[372635491,1752721848931,-460.0,0.00018988,2]
[372635492,1752721848941,-460.0,0.00018988,2]
[372635493,1752721848951,-778.05,0.00018988,2]
[372635494,1752721848960,-460.0,0.00018988,2]
[372635495,1752721848970,-460.0,0.00018988,2]
[372635496,1752721848979,-786.22,0.00018988,2]
[372635497,1752721848989,-816.29,0.00018988,2]
[372635498,1752721848999,-1419.46,0.00018988,2]
[372635499,1752721849009,-843.09,0.00018988,2]
[372635500,1752721849018,-460.0,0.00018988,2]
[372635501,1752721849028,-460.0,0.00018988,2]
[372635502,1752721849047,-460.0,0.00018988,2]
[372635503,1752721849059,-460.0,0.00018988,2]
[372635504,1752721849069,-460.0,0.00018988,2]
[372635505,1752721849079,-460.0,0.00018988,2]
[372635506,1752721849090,-585.07,0.00018989,2]
[372635507,1752721849100,-6141.92,0.00018989,2]
[372635508,1752721849110,-1263.65,0.00018989,2]
[372635509,1752721849120,-2338.02,0.00018989,2]
[372635510,1752721849131,-274.52,0.00018989,2]
[372635511,1752721849140,-2992.09,0.00018989,2]
[372635512,1752721849151,-472.77,0.00018989,2]
[372635513,1752721849160,-460.0,0.00018994,2]
[372635514,1752721849170,-460.0,0.00018994,2]
[372635515,1752721849180,-543.52,0.00018994,2]
[372635516,1752721849190,-171.51287051,0.00018994,2]
[372635517,1752721849200,-487.93,0.00018994,2]
[372635518,1752721849209,-699.72,0.00018994,2]
[372635519,1752721849221,-727.89,0.00018994,2]
[372635520,1752721849231,-554.97,0.00018994,2]
[372635521,1752721849241,-936.36,0.00018994,2]
[372635522,1752721849251,-826.17,0.00018994,2]
[372635523,1752721849260,-151.0,0.00018994,2]
[372635524,1752721849270,-300.34567584,0.00018994,2]
[372635525,1752721849280,-151.0,0.00018994,2]
[372635526,1752721849289,-232.02546,0.00018994,2]
[372635527,1752721849299,-896.59,0.00018994,2]
[372635528,1752721849310,-601.2,0.00018994,2]
[372635529,1752721849320,-460.0,0.00018994,2]
[372635530,1752721849330,-460.0,0.00018994,2]
[372635531,1752721849340,-460.0,0.00018994,2]
[372635532,1752721849350,-151.0,0.00018994,2]
[372635533,1752721849359,-790.32,0.00018994,2]
[372635534,1752721849369,-460.0,0.00018994,2]
[372635535,1752721849379,-650.81,0.00018994,2]
[372635536,1752721849389,-460.0,0.00018994,2]
[372635537,1752721849399,-688.53,0.00018994,2]
[372635538,1752721849409,-460.0,0.00018994,2]
[372635539,1752721849419,-516.3,0.00018994,2]
[372635540,1752721849428,-751.99,0.00018994,2]
[372635541,1752721849438,-460.0,0.00018994,2]
[372635542,1752721849448,-4758.8,0.00018994,2]
[372635543,1752721849458,-936.52,0.00018994,2]
[372635544,1752721849468,-460.0,0.00018994,2]
[372635545,1752721849478,-1448.09,0.00018994,2]
[372635546,1752721849487,-481.2,0.00018994,2]
[372635547,1752721849496,-460.0,0.00018995,2]
[372635548,1752721849506,-1906.78,0.00018995,2]
[372635549,1752721849516,-5477.03,0.00018995,2]
[372635550,1752721849525,-1772.29,0.00018995,2]
[372635551,1752721849534,-460.0,0.00018998,2]
[372635552,1752721849544,-265.39797,0.00018998,2]
[372635553,1752721849553,-265.39797,0.00018998,2]
[372635554,1752721849563,-460.0,0.00018998,2]
[372635555,1752721849573,-461.63,0.00018998,2]
[372635556,1752721849583,-460.0,0.00018998,2]
[372635557,1752721849594,-460.0,0.00018998,2]
[372635558,1752721849603,-36057.65374816,0.00018999,2]
[372635559,1752721849612,-189.169357,0.00018999,2]
[372635560,1752721849622,-151.0,0.00018999,2]
[372635561,1752721849631,-251.625628,0.00018999,2]
[372635562,1752721849641,-151.0,0.00018999,2]
[372635563,1752721849655,-251.625628,0.00018999,2]
[372635564,1752721849665,-460.0,0.00018999,2]
[372635565,1752721849675,-460.0,0.00018999,2]
[372635566,1752721849685,-151.0,0.00018999,2]
[372635567,1752721849695,-460.0,0.00018999,2]
[372635568,1752721849706,-151.0,0.00018999,2]
[372635569,1752721849718,-1000.0,0.00019,2]
[372635570,1752721849728,-1000.0,0.00019,2]
[372635571,1752721849738,-1000.0,0.00019,2]
[372635572,1752721849749,-1000.0,0.00019,2]
[372635573,1752721849761,-1000.0,0.00019,2]
[372635574,1752721849771,-1000.0,0.00019,2]
[372635575,1752721849781,-1000.0,0.00019,2]
[372635576,1752721849792,-1000.0,0.00019,2]
[372635577,1752721849802,-1000.0,0.00019,2]
[372635578,1752721849813,-1000.0,0.00019,2]
[372635579,1752721849827,-1000.0,0.00019,2]
[372635580,1752721849836,-1000.0,0.00019,2]
[372635581,1752721849846,-1000.0,0.00019,2]
[372635582,1752721849857,-1000.0,0.00019,2]
[372635583,1752721849866,-1000.0,0.00019,2]
[372635584,1752721849877,-1000.0,0.00019,2]
[372635585,1752721849887,-201.335855,0.00019,2]
[372635586,1752721849897,-164.979664,0.00019,2]
[372635587,1752721849907,-164.979664,0.00019,2]
[372635588,1752721849917,-153.64963,0.00019,2]
[372635589,1752721849927,-798.32,0.00019,2]
[372635590,1752721849937,-151.0,0.00019,2]
[372635591,1752721849947,-460.0,0.00019,2]
[372635592,1752721849957,-151.0,0.00019,2]
[372635593,1752721849969,-151.0,0.00019,2]
[372635594,1752721849979,-151.0,0.00019,2]
[372635595,1752721849990,-151.0,0.00019001,2]
[372635596,1752721849999,-151.0,0.00019001,2]
[372635597,1752721850009,-191.568259,0.00019001,2]
[372635598,1752721850019,-191.568259,0.00019001,2]
[372635599,1752721850029,-460.0,0.00019001,2]
[372635600,1752721850039,-160.0,0.00019001,2]
[372635601,1752721850049,-230.85589339,0.00019001,2]
[372635602,1752721850059,-839.15451687,0.00019001,2]
[372635603,1752721850068,-160.0,0.00019001,2]
[372635604,1752721850077,-215.59244943,0.00019001,2]
[372635605,1752721850087,-12607.95677342,0.00019001,2]
[372635606,1752721850096,-160.0,0.00019001,2]
[372635607,1752721850106,-476.16111942,0.00019001,2]
[372635608,1752721850116,-160.0,0.00019001,2]
[372635609,1752721850125,-160.0,0.00019001,2]
[372635610,1752721850135,-525.67742785,0.00019001,2]
[372635611,1752721850144,-214.44804168,0.00019001,2]
[372635612,1752721850154,-160.0,0.00019001,2]
[372635613,1752721850163,-160.0,0.00019001,2]
[372635614,1752721850172,-160.0,0.00019001,2]
[372635615,1752721850182,-160.0,0.00019001,2]
[372635616,1752721850192,-160.0,0.00019001,2]
[372635617,1752721850317,-180.428539,0.00019004,2]
[372635618,1752721850327,-180.428539,0.00019004,2]
[372635619,1752721850336,-151.0,0.00019004,2]
[372635620,1752721850346,-151.0,0.00019004,2]
[372635621,1752721850356,-151.0,0.00019006,2]
[372635622,1752721850365,-180.428539,0.00019013,2]
[372635623,1752721850375,-180.428539,0.00019013,2]
[372635624,1752721850384,-168.0,0.00019017,2]
[372635625,1752721850393,-265.39797,0.00019024,2]
[372635626,1752721850403,-265.39797,0.00019024,2]
[372635627,1752721850412,-1702.0,0.0001906,2]
[372635628,1752721850422,-1174.516691,0.00019062,2]
[372635629,1752721850431,-151.0,0.000191,2]
[372635630,1752721850440,-151.0,0.000191,2]
[372635631,1752721850449,-1834.63609853,0.00019114,2]
[372635632,1752721850459,-151.0,0.00019141,2]
[372635633,1752721850468,-11593.50930424,0.00019141,2]
[372635634,1752721850479,-219.72483147,0.00019173,2]
[372635635,1752721850489,-1454.323,0.00019178,2]
[372635636,1752721850499,-473.66682023,0.00019178,2]
[372635637,1752721850508,-1683.194,0.00019178,2]
[372635638,1752721850518,-666.0,0.00019178,2]
[372635639,1752721850527,-1000.0,0.000192,5]
[372635640,1752721850537,-151.0,0.000192,2]
[372635641,1752721850546,-844.85047063,0.00019224,2]
[372635642,1752721850556,-254.73285804,0.00019234,2]
[372635643,1752721850565,-1000.0,0.00019245,2]
[372635644,1752721850575,-151.0,0.00019245,2]
[372635645,1752721850584,-151.0,0.00019245,2]
[372635646,1752721850593,-151.47140819,0.00019245,2]
[372635647,1752721850603,-151.0,0.00019245,2]
[372635648,1752721850612,-151.38498853,0.00019245,2]
[372635649,1752721850622,-151.0,0.00019245,2]
[372635650,1752721850631,-151.54723156,0.00019245,2]
[372635651,1752721850640,-151.41970091,0.00019245,2]
[372635652,1752721850650,-500.0,0.00019245,2]
[372635653,1752721850659,-198.41415332,0.00019245,2]
[372635654,1752721850669,-151.0,0.00019245,2]
[372635655,1752721850679,-151.28927516,0.00019245,2]
[372635656,1752721850688,-911.0,0.00019245,2]
[372635657,1752721850698,-500.0,0.00019245,2]
[372635658,1752721850708,-151.0,0.00019245,2]
[372635659,1752721850719,-500.0,0.00019245,2]
[372635660,1752721850728,-500.0,0.00019245,2]
[372635661,1752721850738,-1702.0,0.00019247,2]
[372635662,1752721850748,-168.0,0.00019252,2]
[372635663,1752721850757,-251.625628,0.00019255,2]
[372635664,1752721850767,-251.625628,0.00019255,2]
[372635665,1752721850776,-467.85644785,0.0001926,2]
[372635666,1752721850786,-460.0,0.0001926,2]
[372635667,1752721850795,-480.26,0.0001926,2]
[372635668,1752721850805,-3160.74,0.0001926,2]
[372635669,1752721850816,-7086.7,0.00019261,2]
[372635670,1752721850828,-460.0,0.00019261,2]
[372635671,1752721850838,-460.0,0.00019261,2]
[372635672,1752721850848,-4330.62,0.00019261,2]
[372635673,1752721850859,-1130.34,0.00019261,2]
[372635674,1752721850868,-460.0,0.00019261,2]
[372635675,1752721850878,-460.0,0.00019261,2]
[372635676,1752721850888,-645.76,0.00019261,2]
[372635677,1752721850899,-3065.11,0.00019261,2]
[372635678,1752721850909,-3304.66,0.00019261,2]
[372635679,1752721850918,-460.0,0.00019261,2]
[372635680,1752721850928,-2477.9,0.00019261,2]
[372635681,1752721850937,-796.26,0.00019261,2]
[372635682,1752721850947,-460.0,0.00019261,2]
[372635683,1752721850957,-253.7,0.00019261,2]
[372635684,1752721850966,-2385.51,0.00019261,2]
[372635685,1752721850977,-460.0,0.00019262,2]
[372635686,1752721850987,-460.0,0.00019262,2]
[372635687,1752721850996,-460.0,0.00019262,2]
[372635688,1752721851007,-460.0,0.00019262,2]
[372635689,1752721851017,-507.41,0.00019262,2]
[372635690,1752721851027,-460.0,0.00019262,2]
[372635691,1752721851037,-460.0,0.00019262,2]
[372635692,1752721851046,-638.36,0.00019262,2]
[372635693,1752721851055,-857.57,0.00019262,2]
[372635694,1752721851065,-460.0,0.00019262,2]
[372635695,1752721851075,-445.79118827,0.00019262,2]
[372635696,1752721851085,-778.05,0.00019262,2]
[372635697,1752721851094,-460.0,0.00019262,2]
[372635698,1752721851104,-460.0,0.00019262,2]
[372635699,1752721851114,-786.22,0.00019262,2]
[372635700,1752721851123,-816.29,0.00019262,2]
[372635701,1752721851134,-1419.46,0.00019262,2]
[372635702,1752721851144,-843.09,0.00019262,2]
[372635703,1752721851153,-424.25015195,0.00019262,2]
[372635704,1752721851172,-460.0,0.00019262,2]
[372635705,1752721851183,-460.0,0.00019262,2]
[372635706,1752721851194,-460.0,0.00019262,2]
[372635707,1752721851204,-460.0,0.00019262,2]
[372635708,1752721851214,-151.0,0.00019263,2]
[372635709,1752721851225,-585.07,0.00019263,2]
[372635710,1752721851235,-6141.92,0.00019263,2]
[372635711,1752721851245,-151.0,0.00019263,2]
[372635712,1752721851255,-1263.65,0.00019263,2]
[372635713,1752721851265,-2338.02,0.00019263,2]
[372635714,1752721851275,-2992.09,0.00019263,2]
[372635715,1752721851285,-472.77,0.00019263,2]
[372635716,1752721851294,-151.0,0.00019263,2]
[372635717,1752721851304,-151.0,0.00019266,2]
[372635718,1752721851314,-460.0,0.00019268,2]
[372635719,1752721851324,-460.0,0.00019268,2]
[372635720,1752721851333,-543.52,0.00019268,2]
[372635721,1752721851343,-487.93,0.00019268,2]
[372635722,1752721851353,-699.72,0.00019268,2]
[372635723,1752721851363,-727.89,0.00019268,2]
[372635724,1752721851373,-554.97,0.00019268,2]
[372635725,1752721851382,-936.36,0.00019268,2]
[372635726,1752721851392,-826.17,0.00019268,2]
[372635727,1752721851401,-896.59,0.00019268,2]
[372635728,1752721851411,-601.2,0.00019268,2]
[372635729,1752721851421,-460.0,0.00019268,2]
[372635730,1752721851430,-460.0,0.00019268,2]
[372635731,1752721851440,-460.0,0.00019268,2]
[372635732,1752721851449,-790.32,0.00019268,2]
[372635733,1752721851459,-460.0,0.00019268,2]
[372635734,1752721851469,-650.81,0.00019268,2]
[372635735,1752721851479,-460.0,0.00019268,2]
[372635736,1752721851488,-688.53,0.00019268,2]
[372635737,1752721851497,-460.0,0.00019268,2]
[372635738,1752721851507,-751.99,0.00019268,2]